bitfinex-derivatives/quotes_BTCF0:USTF0_20241117
["timestamp","ask_amount","ask_price","bid_price","bid_amount"]
[1731859585780,0.3608,90281.0,90271.0,0.00166158]
[1731859585781,0.055382,90277.0,90271.0,0.00166158]
[1731859586076,0.3608,90281.0,90271.0,0.00166158]
[1731859586284,0.055385,90273.0,90271.0,0.00166158]
[1731859587484,0.02838436,90281.0,90272.0,0.3608]
[1731859587688,0.055377,90285.0,90275.0,0.055383]
[1731859588195,0.02804133,90288.0,90280.0,0.3608]
[1731859588484,0.055373,90291.0,90283.0,0.055378]
[1731859589181,0.055374,90290.0,90280.0,0.3608]
[1731859589385,0.0327,90295.0,90280.0,0.3608]
[1731859589584,0.0327,90295.0,90280.0,0.36076]
[1731859589780,0.055377,90286.0,90280.0,0.36076]
[1731859589975,0.055378,90283.0,90280.0,0.36076]
[1731859590175,0.055378,90283.0,90274.0,0.19798763]
[1731859590384,0.055378,90283.0,90274.0,0.25337063]
[1731859590583,0.055374,90290.0,90275.0,0.19798763]
[1731859590785,0.055375,90288.0,90279.0,0.3608]
[1731859591778,0.055375,90288.0,90280.0,0.05538]
[1731859591990,0.055378,90283.0,90279.0,0.3608]
[1731859592291,0.06060637,90295.0,90275.0,0.19798763]
[1731859592292,0.3608,90289.0,90275.0,0.19798763]
[1731859592481,0.3608,90289.0,90271.0,0.00166158]
[1731859592482,0.14313427,90280.0,90271.0,0.00166158]
[1731859592685,0.41618,90280.0,90271.0,0.00166158]
[1731859592884,0.3608,90280.0,90271.0,0.00166158]
[1731859593092,0.055384,90273.0,90271.0,0.00166158]
[1731859593294,0.0307,90272.0,90271.0,0.00166158]
[1731859602301,0.15672369,90272.0,90271.0,0.00166158]
[1731859605495,0.25052369,90272.0,90271.0,0.00166158]
[1731859607092,0.18932369,90272.0,90271.0,0.00166158]
[1731859607799,0.18932369,90272.0,90265.0,0.055389]
[1731859607999,0.055388,90267.0,90265.0,0.055389]
[1731859609503,0.02747902,90273.0,90271.0,0.055385]
[1731859609694,0.055384,90274.0,90272.0,0.0314]
[1731859610586,0.38857088,90280.0,90274.0,0.055384]
[1731859610789,0.055381,90279.0,90274.0,0.055384]
[1731859610990,0.38913089,90280.0,90273.0,0.0317]
[1731859611199,0.38857088,90280.0,90277.0,0.055382]
[1731859611400,0.02777088,90280.0,90277.0,0.055382]
[1731859611603,0.0938,90285.0,90277.0,0.055382]
[1731859612409,0.12134587,90285.0,90277.0,0.055382]
[1731859612593,0.02754587,90285.0,90281.0,0.055379]
[1731859612792,0.055373,90292.0,90280.0,0.3608]
[1731859613207,0.055373,90292.0,90285.0,0.055377]
[1731859613407,0.055373,90292.0,90288.0,0.3608]
[1731859613706,0.0938,90296.0,90288.0,0.3608]
[1731859613904,0.055372,90293.0,90288.0,0.3608]
[1731859614104,0.055372,90293.0,90288.0,0.55965102]
[1731859614816,0.055373,90292.0,90288.0,0.55965102]
[1731859615110,0.055374,90291.0,90288.0,0.19885102]
[1731859619218,0.055374,90291.0,90286.0,0.0323]
[1731859619219,0.3608,90293.0,90291.0,0.055373]
[1731859619407,0.02826912,90299.0,90286.0,0.23115102]
[1731859619611,9.952e-05,90299.0,90297.0,0.055369]
[1731859619805,9.952e-05,90299.0,90298.0,0.3926]
[1731859620215,9.952e-05,90299.0,90298.0,0.59145102]
[1731859620417,9.952e-05,90299.0,90298.0,0.3926]
[1731859620715,9.952e-05,90299.0,90298.0,0.0318]
[1731859620906,9.952e-05,90299.0,90298.0,0.3926]
[1731859621310,9.952e-05,90299.0,90298.0,0.59122244]
[1731859621516,9.952e-05,90300.0,90299.0,0.055368]
[1731859621721,0.055356,90320.0,90309.0,0.055362]
[1731859621923,0.055356,90320.0,90310.0,0.446661]
[1731859622308,0.055357,90318.0,90310.0,0.446661]
[1731859622615,0.00010106,90317.0,90310.0,0.446661]
[1731859623813,0.00010106,90317.0,90311.0,0.055361]
[1731859624009,0.00010106,90317.0,90310.0,0.3913]
[1731859624010,0.00010106,90317.0,90315.0,0.055358]
[1731859626516,0.09562475,90317.0,90314.0,0.00014335]
[1731859626719,0.055358,90316.0,90314.0,0.00014335]
[1731859626919,0.086058,90316.0,90314.0,0.00014335]
[1731859628111,0.3608,90315.0,90314.0,0.00014335]
[1731859628911,0.086058,90316.0,90314.0,0.00014335]
[1731859629417,0.3608,90316.0,90314.0,0.00014335]
[1731859629618,0.00010106,90317.0,90314.0,0.05550235]
[1731859630221,0.055358,90316.0,90314.0,0.00014335]
[1731859631828,0.15088169,90316.0,90314.0,0.00014335]
[1731859635318,0.33216,90315.0,90314.0,0.00014335]
[1731859635533,0.055369,90298.0,90296.0,0.19861391]
[1731859635730,0.055369,90298.0,90279.0,0.39770204]
[1731859635731,0.3608,90299.0,90295.0,0.19861391]
[1731859636031,0.055376,90287.0,90285.0,0.1985614]
[1731859636625,0.0312,90297.0,90284.0,0.3608]
[1731859636827,0.0312,90297.0,90292.0,0.055372]
[1731859637131,0.055371,90295.0,90294.0,0.19857526]
[1731859637320,0.0312,90297.0,90290.0,0.19857526]
[1731859637526,0.055375,90288.0,90284.0,0.19857526]
[1731859637722,0.45632369,90291.0,90284.0,0.055377]
[1731859637723,0.055376,90287.0,90284.0,0.055377]
[1731859637923,0.45632369,90291.0,90284.0,0.25395226]
[1731859638142,0.055377,90286.0,90284.0,0.055377]
[1731859638639,0.4568837,90291.0,90283.0,0.19857526]
[1731859638823,0.4568837,90291.0,90282.0,0.00012755]
[1731859638824,0.055378,90283.0,90282.0,0.00012755]
[1731859639330,0.09276,90290.0,90282.0,0.00012755]
[1731859639642,0.09276,90290.0,90282.0,0.05550555]
[1731859640425,0.4568837,90291.0,90282.0,0.05550555]
[1731859640721,0.45632369,90291.0,90284.0,0.055378]
[1731859640917,0.45632369,90291.0,90282.0,0.00012755]
[1731859640918,0.055377,90285.0,90282.0,0.00012755]
[1731859641130,0.055378,90283.0,90282.0,0.00012755]
[1731859641321,0.15090169,90283.0,90282.0,0.00012755]
[1731859643541,0.51170169,90283.0,90282.0,0.00012755]
[1731859643831,0.45632369,90283.0,90267.0,0.19862847]
[1731859644033,0.05539,90265.0,90262.0,0.25568083]
[1731859644241,0.05539,90264.0,90262.0,0.05705236]
[1731859644528,0.05539,90264.0,90262.0,0.00166136]
[1731859644734,0.00012962,90263.0,90262.0,0.00166136]
[1731859646434,0.055396,90254.0,90253.0,0.00011213]
[1731859648331,0.08289415,90254.0,90253.0,0.00011213]
[1731859649531,0.055396,90254.0,90253.0,0.00011213]
[1731859649738,0.15091969,90254.0,90253.0,0.00011213]
[1731859653559,0.055406,90238.0,90237.0,0.0039]
[1731859653748,0.60452969,90238.0,90237.0,0.0039]
[1731859654143,0.416206,90238.0,90237.0,0.0039]
[1731859654948,0.3608,90238.0,90237.0,0.0039]
[1731859655348,0.3608,90238.0,90237.0,0.0663]
[1731859655558,0.08301501,90248.0,90245.0,0.055401]
[1731859656264,0.0554,90247.0,90245.0,0.055401]
[1731859656555,0.0928,90251.0,90239.0,0.055405]
[1731859656748,0.09552369,90252.0,90237.0,0.0663]
[1731859656749,0.055404,90242.0,90240.0,0.055404]
[1731859658443,0.02792725,90251.0,90242.0,0.055403]
[1731859658444,0.055399,90249.0,90242.0,0.055403]
[1731859658756,0.0554,90248.0,90244.0,0.055402]
[1731859659253,0.09552369,90252.0,90244.0,0.055402]
[1731859659254,0.055401,90246.0,90244.0,0.055402]
[1731859660754,0.055397,90252.0,90248.0,0.0554]
[1731859660959,0.09552369,90253.0,90237.0,0.0663]
[1731859661155,0.055406,90239.0,90237.0,0.0039]
[1731859661655,0.3608,90238.0,90237.0,0.0039]
[1731859661859,0.4251,90238.0,90237.0,0.0039]
[1731859664158,0.45308275,90238.0,90237.0,0.0039]
[1731859669062,0.055399,90249.0,90247.0,0.0554]
[1731859669265,0.055399,90249.0,90237.0,0.0039]
[1731859669266,0.055399,90249.0,90238.0,0.0309]
[1731859669453,0.055402,90244.0,90241.0,0.055404]
[1731859669652,0.055405,90243.0,90242.0,0.055403]
[1731859669958,0.055405,90239.0,90237.0,0.0039]
[1731859670159,0.09552369,90238.0,90237.0,0.0039]
[1731859670362,0.12642369,90238.0,90237.0,0.0039]
[1731859671052,0.15722369,90238.0,90237.0,0.0039]
[1731859673973,0.18557747,90238.0,90237.0,0.0039]
[1731859675263,0.54637747,90238.0,90237.0,0.0039]
[1731859676165,0.60178347,90238.0,90237.0,0.0039]
[1731859680563,0.60178347,90238.0,90228.0,0.26679701]
[1731859680564,0.055411,90229.0,90228.0,0.19458578]
[1731859680770,0.055417,90219.0,90218.0,0.26513469]
[1731859680971,0.055418,90218.0,90217.0,0.32055269]
[1731859681173,0.055418,90218.0,90217.0,0.055418]
[1731859681964,0.055418,90218.0,90217.0,0.32094003]
[1731859682177,0.055418,90218.0,90217.0,0.055418]
[1731859682477,0.05542,90214.0,90213.0,0.00013187]
[1731859682869,0.05542,90214.0,90213.0,0.05555287]
[1731859685173,0.05542,90214.0,90213.0,0.26559598]
[1731859685475,0.05542,90214.0,90213.0,0.00013187]
[1731859685876,0.14726,90214.0,90213.0,0.00013187]
[1731859686177,0.14726,90214.0,90200.0,0.1]
[1731859686178,0.24286963,90214.0,90201.0,0.26533224]
[1731859686368,0.055428,90201.0,90200.0,0.1]
[1731859686565,0.147268,90201.0,90200.0,0.1]
[1731859687073,0.05544,90183.0,90182.0,0.0329]
[1731859687274,0.15096369,90183.0,90182.0,0.0329]
[1731859687477,0.3608,90187.0,90185.0,0.055438]
[1731859688063,0.3608,90187.0,90182.0,0.0329]
[1731859688064,0.416229,90201.0,90195.0,0.055432]
[1731859688265,0.055431,90198.0,90183.0,0.055439]
[1731859688481,0.055432,90196.0,90182.0,0.0329]
[1731859688780,0.3608,90208.0,90193.0,0.09552369]
[1731859689078,0.02218027,90218.0,90208.0,0.055424]
[1731859689079,0.0301,90217.0,90208.0,0.055424]
[1731859689277,0.02842309,90214.0,90208.0,0.055424]
[1731859689480,0.02842309,90214.0,90203.0,0.055427]
[1731859689782,0.055428,90202.0,90198.0,0.08633]
[1731859690078,0.055428,90202.0,90199.0,1.555429]
[1731859690272,0.055428,90202.0,90199.0,0.055429]
[1731859690589,0.055428,90202.0,90200.0,0.3608]
[1731859691386,0.09552369,90213.0,90200.0,0.3608]
[1731859691569,0.09552369,90213.0,90206.0,0.055425]
[1731859691764,8.594e-05,90214.0,90201.0,0.0311]
[1731859691972,8.594e-05,90214.0,90212.0,0.055422]
[1731859693276,0.09116,90226.0,90212.0,0.055422]
[1731859693277,0.0052,90234.0,90215.0,0.05542]
[1731859693468,0.416203,90243.0,90227.0,0.3608]
[1731859693666,0.3608,90243.0,90228.0,0.0303]
[1731859693867,0.3608,90243.0,90241.0,0.055404]
[1731859694071,0.45632369,90243.0,90228.0,0.0303]
[1731859694271,0.00012709,90235.0,90228.0,0.0303]
[1731859694479,0.00012709,90235.0,90234.0,0.055408]
[1731859694675,0.0007271,90235.0,90234.0,0.055408]
[1731859694866,0.00012709,90235.0,90234.0,0.055408]
[1731859695071,0.055408,90234.0,90228.0,0.0303]
[1731859695271,0.09552369,90229.0,90224.0,0.3608]
[1731859695487,0.09552369,90225.0,90217.0,0.0311]
[1731859695684,0.09552369,90225.0,90216.0,0.0305]
[1731859695685,0.09552369,90218.0,90216.0,0.055419]
[1731859697469,0.09552369,90218.0,90214.0,0.3608]
[1731859697470,0.055419,90216.0,90214.0,0.3608]
[1731859697790,0.055419,90216.0,90206.0,0.3608]
[1731859697791,0.09552369,90218.0,90206.0,0.3608]
[1731859698079,0.3608,90219.0,90195.0,1.50116]
[1731859698080,0.055426,90206.0,90196.0,0.69221836]
[1731859698393,0.055426,90206.0,90202.0,0.055427]
[1731859699279,0.09552369,90211.0,90202.0,0.055427]
[1731859699479,0.055428,90203.0,90195.0,0.055432]
[1731859699679,0.055429,90201.0,90196.0,0.055431]
[1731859699980,0.09552369,90201.0,90190.0,0.00166277]
[1731859700285,0.09116,90209.0,90190.0,0.00166277]
[1731859700286,0.21522526,90209.0,90200.0,0.055429]
[1731859700471,0.055426,90206.0,90202.0,0.055428]
[1731859700675,0.055426,90206.0,90197.0,0.3608]
[1731859700676,0.055427,90204.0,90197.0,0.3608]
[1731859700876,0.055427,90204.0,90195.0,0.3608]
[1731859701093,0.055427,90204.0,90196.0,0.0322]
[1731859701791,0.055427,90204.0,90201.0,0.055428]
[1731859702390,0.18668369,90209.0,90195.0,0.3608]
[1731859702391,0.05543,90199.0,90195.0,0.055432]
[1731859702780,0.09552369,90202.0,90200.0,0.055429]
[1731859702977,0.09116,90210.0,90196.0,0.055431]
[1731859703277,0.09116,90210.0,90195.0,0.3608]
[1731859703278,0.09116,90210.0,90208.0,0.055424]
[1731859703483,0.05542,90215.0,90203.0,0.3608]
[1731859703684,0.05542,90215.0,90209.0,0.055423]
[1731859704085,0.13213537,90226.0,90197.0,0.0659]
[1731859704086,0.055418,90219.0,90214.0,0.05542]
[1731859704394,0.055418,90219.0,90207.0,0.3608]
[1731859704778,0.055422,90211.0,90206.0,0.055425]
[1731859704977,0.09552369,90210.0,90206.0,0.055425]
[1731859705276,0.055427,90204.0,90198.0,1.5]
[1731859705583,0.055427,90204.0,90202.0,0.055428]
[1731859706091,0.09552369,90210.0,90199.0,0.055429]
[1731859706092,0.055428,90202.0,90199.0,0.055429]
[1731859706288,0.09552369,90203.0,90195.0,0.3608]
[1731859706495,0.09552369,90203.0,90195.0,0.416232]
[1731859706496,0.055431,90198.0,90195.0,0.416232]
[1731859706688,0.09552369,90203.0,90190.0,0.00166277]
[1731859706987,0.055433,90195.0,90192.0,0.055434]
[1731859707194,0.09552369,90196.0,90192.0,0.055434]
[1731859707385,0.055433,90194.0,90192.0,0.055434]
[1731859707771,0.09552369,90196.0,90193.0,0.055433]
[1731859708173,0.15095569,90196.0,90193.0,0.055433]
[1731859708881,0.09552369,90196.0,90190.0,0.00166277]
[1731859709080,0.055435,90192.0,90190.0,0.00166277]
[1731859709382,0.055435,90192.0,90190.0,0.05709777]
[1731859710086,0.05543,90198.0,90190.0,0.00166277]
[1731859710291,0.3908,90202.0,90190.0,0.00166277]
[1731859710292,0.3908,90202.0,90200.0,0.055429]
[1731859710980,0.3608,90202.0,90200.0,0.055429]
[1731859711890,0.51175169,90202.0,90200.0,0.055429]
[1731859712192,0.055424,90208.0,90200.0,0.055429]
[1731859712386,0.055424,90208.0,90195.0,0.3608]
[1731859712387,0.055424,90208.0,90206.0,0.055425]
[1731859712695,0.09116,90215.0,90203.0,0.3608]
[1731859712881,0.055422,90212.0,90207.0,0.055425]
[1731859713396,0.09116,90215.0,90207.0,0.055425]
[1731859713397,0.055424,90208.0,90207.0,0.055425]
[1731859716490,0.055421,90214.0,90203.0,0.3608]
[1731859716685,0.055421,90214.0,90210.0,0.055422]
[1731859717195,0.12712369,90216.0,90203.0,0.3608]
[1731859717379,0.0316,90216.0,90214.0,0.05542]
[1731859718983,0.0316,90216.0,90203.0,0.69221836]
[1731859718984,0.0306,90221.0,90211.0,0.3608]
[1731859719178,0.0303,90229.0,90211.0,0.3608]
[1731859719379,0.00012709,90235.0,90211.0,0.3608]
[1731859719380,0.16473537,90234.0,90221.0,0.3608]
[1731859719585,0.00056001,90233.0,90232.0,0.055409]
[1731859719782,0.088008,90234.0,90232.0,0.055409]
[1731859720691,0.055412,90229.0,90227.0,0.055412]
[1731859721989,0.0326,90234.0,90221.0,0.3608]
[1731859722178,0.0326,90234.0,90232.0,0.055409]
[1731859722592,0.088008,90234.0,90232.0,0.055409]
[1731859724192,0.088008,90234.0,90221.0,0.3608]
[1731859724193,0.0326,90234.0,90221.0,0.3608]
[1731859724392,0.055411,90229.0,90227.0,0.055412]
[1731859725192,0.055415,90223.0,90221.0,0.3608]
[1731859725390,0.055419,90217.0,90213.0,0.055421]
[1731859725589,0.09552369,90215.0,90213.0,0.055421]
[1731859725898,0.055422,90212.0,90207.0,0.055424]
[1731859726079,0.055422,90212.0,90203.0,0.055427]
[1731859726282,0.055422,90212.0,90200.0,0.72281836]
[1731859726283,0.055422,90212.0,90200.0,0.3914]
[1731859726486,0.055422,90212.0,90201.0,0.01039874]
[1731859726691,0.055422,90212.0,90200.0,0.39256]
[1731859726887,0.055422,90212.0,90201.0,0.01039861]
[1731859727086,0.055422,90212.0,90200.0,0.3914]
[1731859727281,0.055422,90212.0,90201.0,0.01039874]
[1731859727486,0.055422,90212.0,90200.0,0.3914]
[1731859727792,0.055422,90212.0,90210.0,0.055423]
[1731859729292,0.09552369,90215.0,90200.0,0.3914]
[1731859729293,0.09552369,90215.0,90212.0,0.055422]
[1731859729489,0.09552369,90215.0,90213.0,0.055421]
[1731859730690,0.055416,90221.0,90213.0,0.055421]
[1731859730891,0.0311,90222.0,90221.0,0.055416]
[1731859731484,0.3608,90225.0,90224.0,0.055414]
[1731859731992,0.3608,90225.0,90210.0,0.45632369]
[1731859731993,0.055413,90227.0,90226.0,0.055413]
[1731859733097,0.09552369,90231.0,90214.0,0.05542]
[1731859733098,0.055411,90229.0,90214.0,0.05542]
[1731859733401,0.09552369,90231.0,90217.0,0.055418]
[1731859733402,0.055418,90218.0,90217.0,0.055418]
[1731859733899,0.09552369,90219.0,90218.0,0.055418]
[1731859734089,0.15094069,90219.0,90218.0,0.055418]
[1731859734589,0.09552369,90219.0,90218.0,0.416218]
[1731859734790,0.02762303,90232.0,90224.0,0.055414]
[1731859734791,0.3608,90227.0,90224.0,0.055414]
[1731859735001,0.055414,90225.0,90223.0,0.055415]
[1731859735301,0.055414,90224.0,90223.0,0.055415]
[1731859735504,0.055417,90220.0,90218.0,0.055418]
[1731859735690,0.055418,90219.0,90207.0,0.3608]
[1731859736397,0.055418,90219.0,90208.0,1.5]
[1731859736595,0.055418,90219.0,90218.0,0.055418]
[1731859736898,0.055418,90219.0,90207.0,0.3608]
[1731859736899,0.055418,90218.0,90207.0,0.3608]
[1731859737207,0.055427,90203.0,90201.0,0.055428]
[1731859737391,0.09552369,90202.0,90201.0,0.055428]
[1731859738088,0.055425,90207.0,90194.0,0.33141836]
[1731859738294,0.055426,90206.0,90202.0,0.055427]
[1731859738493,0.055426,90206.0,90195.0,0.01039932]
[1731859738494,0.055426,90206.0,90203.0,0.055427]
[1731859739095,0.0652,90208.0,90203.0,0.055427]
[1731859739096,0.055427,90204.0,90203.0,0.055427]
[1731859739292,0.055428,90203.0,90194.0,0.33141836]
[1731859739494,0.055428,90203.0,90200.0,0.055429]
[1731859740199,0.055432,90195.0,90194.0,0.33141836]
[1731859740399,0.055433,90195.0,90194.0,0.055433]
[1731859740605,0.09552369,90196.0,90195.0,0.055432]
[1731859741189,0.09552369,90203.0,90192.0,0.3608]
[1731859741502,0.055429,90200.0,90192.0,0.3608]
[1731859741704,0.055429,90200.0,90197.0,0.055431]
[1731859742103,0.09552369,90203.0,90192.0,0.3608]
[1731859742294,0.055432,90196.0,90192.0,0.416233]
[1731859742495,0.055432,90195.0,90192.0,0.416233]
[1731859742810,0.055432,90195.0,90194.0,0.055433]
[1731859747111,0.055433,90194.0,90192.0,0.3608]
[1731859748005,0.055433,90194.0,90192.0,0.416234]
[1731859749108,0.09552369,90196.0,90195.0,0.055432]
[1731859752503,0.09552369,90196.0,90190.0,0.00166277]
[1731859752709,0.055433,90194.0,90191.0,0.055434]
[1731859752905,0.055433,90194.0,90190.0,0.00166277]
[1731859753112,0.055433,90194.0,90192.0,0.055433]
[1731859755215,0.09552369,90196.0,90195.0,0.055432]
[1731859755624,0.3608,90205.0,90194.0,0.62620515]
[1731859755914,0.3608,90205.0,90204.0,0.055427]
[1731859756301,0.416226,90205.0,90197.0,0.26540515]
[1731859756505,0.09552369,90203.0,90201.0,0.055428]
[1731859757012,0.055431,90197.0,90195.0,0.32083715]
[1731859757212,0.15095469,90197.0,90195.0,0.055432]
[1731859758218,0.09552369,90204.0,90195.0,0.055432]
[1731859758405,0.15095069,90204.0,90194.0,0.62736515]
[1731859758610,0.15095069,90204.0,90194.0,0.62620515]
[1731859759314,0.09552369,90204.0,90195.0,0.26540515]
[1731859759501,0.09552369,90204.0,90202.0,0.055428]
[1731859759906,0.09552369,90204.0,90194.0,0.3608]
[1731859759907,0.3608,90205.0,90204.0,0.055427]
[1731859760417,0.3608,90215.0,90213.0,0.05542]
[1731859760614,0.00056001,90215.0,90214.0,1.5657]
[1731859760817,0.055412,90228.0,90214.0,1.5657]
[1731859761021,0.09552369,90229.0,90226.0,0.055413]
[1731859761204,0.02763481,90230.0,90227.0,0.055412]
[1731859761520,0.15977018,90230.0,90227.0,0.055412]
[1731859761716,0.13213537,90230.0,90227.0,0.055412]
[1731859761917,0.49293537,90233.0,90229.0,0.055411]
[1731859762219,0.05541,90231.0,90229.0,0.055411]
[1731859763315,0.3608,90233.0,90224.0,0.055414]
[1731859763509,0.055414,90226.0,90224.0,0.055414]
[1731859765016,0.09552369,90228.0,90217.0,0.2654716]
[1731859765209,0.055413,90227.0,90215.0,0.3554716]
[1731859765411,0.055416,90222.0,90216.0,0.055419]
[1731859766217,0.055416,90222.0,90214.0,0.0325]
[1731859766218,0.09552369,90221.0,90214.0,0.0325]
[1731859766423,0.055422,90212.0,90209.0,0.2654716]
[1731859766614,0.4508,90226.0,90206.0,0.055425]
[1731859766615,0.09552369,90214.0,90206.0,0.055425]
[1731859767013,0.09552369,90214.0,90204.0,0.2654716]
[1731859767212,0.09552369,90214.0,90196.0,0.36231836]
[1731859767213,0.09552369,90206.0,90200.0,0.2654716]
[1731859767414,0.055428,90202.0,90197.0,0.2654716]
[1731859767616,0.055428,90202.0,90197.0,0.3209016]
[1731859767921,0.055428,90202.0,90197.0,0.05543]
[1731859768124,0.09552369,90206.0,90196.0,0.2654716]
[1731859768327,0.055431,90197.0,90193.0,0.26551601]
[1731859768520,0.09552369,90199.0,90193.0,4.441e-05]
[1731859769838,0.055432,90196.0,90193.0,4.441e-05]
[1731859770037,0.055433,90194.0,90193.0,4.441e-05]
[1731859773637,0.0839115,90194.0,90193.0,4.441e-05]
[1731859774343,0.055441,90181.0,90180.0,0.00011845]
[1731859774543,0.15096469,90181.0,90180.0,0.00011845]
[1731859775052,0.51176469,90181.0,90180.0,0.00011845]
[1731859775263,0.51176469,90181.0,90166.0,0.2654716]
[1731859775264,0.60742007,90181.0,90166.0,0.2654716]
[1731859775451,0.60742007,90181.0,90159.0,0.2654716]
[1731859775452,0.09552369,90170.0,90159.0,0.2654716]
[1731859775750,0.055453,90161.0,90159.0,0.055454]
[1731859776345,0.055453,90161.0,90160.0,0.00014313]
[1731859777141,0.0303,90169.0,90160.0,0.00014313]
[1731859777362,0.36136001,90172.0,90167.0,0.055449]
[1731859777363,0.3608,90172.0,90167.0,0.055449]
[1731859777655,0.055447,90171.0,90167.0,0.055449]
[1731859777846,0.0612,90180.0,90170.0,0.09552369]
[1731859778049,0.00013169,90181.0,90170.0,0.09552369]
[1731859778050,0.00013169,90181.0,90179.0,0.055442]
[1731859778552,0.00013169,90181.0,90180.0,0.0301]
[1731859781860,0.00013169,90181.0,90180.0,0.3909]
[1731859782955,0.00013169,90181.0,90180.0,0.72358]
[1731859783170,0.0052,90201.0,90198.0,0.05543]
[1731859783358,0.055429,90201.0,90198.0,0.05543]
[1731859784058,9.054e-05,90201.0,90199.0,0.05543]
[1731859784243,9.054e-05,90201.0,90200.0,0.09552369]
[1731859784448,9.054e-05,90201.0,90200.0,0.54820369]
[1731859784849,9.054e-05,90201.0,90200.0,0.55860202]
[1731859785557,0.00166335,90219.0,90218.0,0.055418]
[1731859786557,0.055418,90218.0,90212.0,0.08888]
[1731859787763,0.055418,90218.0,90213.0,0.055421]
[1731859788364,0.09552369,90219.0,90208.0,0.055424]
[1731859788666,0.09552369,90212.0,90209.0,0.055423]
[1731859789755,0.09552369,90212.0,90210.0,0.055422]
[1731859789956,0.09552369,90212.0,90207.0,0.3608]
[1731859789957,0.00013417,90221.0,90208.0,0.055424]
[1731859790157,0.00013417,90221.0,90207.0,0.3608]
[1731859790461,0.05555017,90221.0,90207.0,0.3608]
[1731859790657,0.055417,90220.0,90207.0,0.3608]
[1731859790964,0.055418,90219.0,90213.0,0.055421]
[1731859791261,0.00013417,90221.0,90219.0,0.055417]
[1731859796966,0.00013417,90221.0,90206.0,0.00116]
[1731859796967,0.09552369,90220.0,90206.0,0.00116]
[1731859797168,0.15094569,90211.0,90207.0,0.055424]
[1731859798072,0.15094569,90211.0,90203.0,0.08884]
[1731859798073,0.09552369,90211.0,90203.0,0.08884]
[1731859798267,0.055425,90207.0,90202.0,0.055428]
[1731859798469,0.15095069,90204.0,90198.0,0.08884]
[1731859798774,0.15095069,90204.0,90194.0,0.3608]
[1731859798775,0.055429,90201.0,90199.0,0.3608]
[1731859799075,0.09552369,90204.0,90194.0,0.08884]
[1731859799275,0.0279211,90208.0,90200.0,0.055428]
[1731859799579,0.055428,90203.0,90200.0,0.055428]
[1731859800267,0.42556001,90210.0,90208.0,0.055424]
[1731859800575,0.3608,90210.0,90208.0,0.055424]
[1731859801270,0.02866676,90219.0,90209.0,0.3608]
[1731859801471,0.0634,90220.0,90209.0,0.3608]
[1731859801676,0.055421,90214.0,90209.0,0.3608]
[1731859801874,0.09552369,90210.0,90209.0,0.3608]
[1731859802075,0.09552369,90210.0,90199.0,0.055429]
[1731859802413,0.09138582,90220.0,90191.0,0.36196]
[1731859802414,0.055432,90196.0,90191.0,0.36196]
[1731859802673,0.055432,90196.0,90191.0,0.416235]
[1731859802979,0.055432,90196.0,90192.0,0.055434]
[1731859803170,0.031,90202.0,90191.0,0.3608]
[1731859803372,0.09552369,90196.0,90187.0,0.055437]
[1731859803576,0.055435,90191.0,90187.0,0.055437]
[1731859803767,0.055435,90191.0,90188.0,0.055436]
[1731859804677,0.09552369,90196.0,90184.0,0.08888]
[1731859804678,0.09552369,90196.0,90191.0,0.055435]
[1731859804866,0.055431,90197.0,90191.0,0.055435]
[1731859805275,0.055431,90197.0,90194.0,0.055433]
[1731859806267,0.0325,90201.0,90195.0,0.3608]
[1731859806463,0.055421,90214.0,90210.0,0.055423]
[1731859807384,0.0648,90219.0,90204.0,1.5]
[1731859807385,0.09552369,90217.0,90204.0,1.5]
[1731859807770,0.0648,90219.0,90212.0,0.3608]
[1731859808282,0.0648,90219.0,90218.0,0.055418]
[1731859808583,0.00013417,90221.0,90220.0,0.055417]
[1731859812278,0.00013417,90221.0,90208.0,0.20017854]
[1731859812279,0.33265417,90221.0,90208.0,0.20017854]
[1731859812487,0.33265417,90221.0,90204.0,0.00116]
[1731859812488,0.055425,90206.0,90204.0,0.00116]
[1731859812671,0.0639,90205.0,90204.0,0.00116]
[1731859812870,0.0639,90205.0,90203.0,0.055427]
[1731859813183,0.00013417,90221.0,90205.0,0.055426]
[1731859813367,0.00013417,90221.0,90214.0,0.1990516]
[1731859813567,0.00013417,90221.0,90216.0,0.1990516]
[1731859813769,0.00013417,90221.0,90220.0,0.055417]
[1731859813965,0.00013417,90221.0,90214.0,0.1990516]
[1731859814168,0.00013417,90221.0,90217.0,0.055419]
[1731859814378,0.00013417,90221.0,90214.0,0.1990516]
[1731859814570,0.055418,90218.0,90215.0,0.05542]
[1731859814775,0.055418,90218.0,90215.0,0.2544716]
[1731859814980,0.055418,90218.0,90211.0,0.3608]
[1731859814981,0.00013417,90221.0,90220.0,0.055417]
[1731859815170,0.00013417,90221.0,90220.0,0.41631772]
[1731859815369,0.00013417,90221.0,90220.0,0.50535772]
[1731859817683,0.00013417,90221.0,90220.0,0.68161183]
[1731859817983,0.00013417,90221.0,90220.0,0.05551772]
[1731859818169,0.00013417,90221.0,90220.0,0.00010072]
[1731859818483,0.03223417,90221.0,90220.0,0.00010072]
[1731859819186,0.055422,90212.0,90211.0,0.3608]
[1731859819375,0.055424,90208.0,90204.0,0.19897821]
[1731859819574,0.055424,90208.0,90203.0,0.25440521]
[1731859819883,0.055424,90208.0,90205.0,0.055426]
[1731859820183,0.055424,90208.0,90205.0,0.05550811]
[1731859820786,0.055418,90219.0,90216.0,0.055419]
[1731859820980,0.03223417,90221.0,90211.0,0.3608]
[1731859821169,0.03223417,90221.0,90217.0,0.055418]
[1731859821375,0.03223417,90221.0,90211.0,0.3608]
[1731859821376,0.00013417,90221.0,90211.0,0.3608]
[1731859821586,0.00013417,90221.0,90219.0,0.055417]
[1731859827384,0.05555017,90221.0,90217.0,0.19899546]
[1731859827984,0.05555017,90221.0,90217.0,0.25441446]
[1731859828876,0.00013417,90221.0,90216.0,0.19899546]
[1731859829078,0.09552369,90217.0,90213.0,0.19899546]
[1731859829273,0.09552369,90217.0,90212.0,0.19899546]